bitfinex/quotes_SOLUSD_20260102
["timestamp","ask_amount","ask_price","bid_price","bid_amount"]
[1767348760190,23.81679959,129.36,129.32,2.186065]
[1767348760191,22.54108511,129.36,129.32,2.786065]
[1767348760603,22.54108511,129.36,129.32,0.8]
[1767348760818,22.54108511,129.36,129.32,2.786065]
[1767348761812,14.1,129.36,129.33,2.586065]
[1767348762708,22.54077828,129.36,129.32,2.186065]
[1767348762887,22.54077828,129.36,129.32,2.786065]
[1767348763786,0.71035052,129.37,129.34,0.6]
[1767348764003,0.71035052,129.37,129.33,1.986065]
[1767348764004,14.1,129.38,129.33,0.6]
[1767348764193,14.1,129.38,129.32,7.93257862]
[1767348764194,14.1,129.38,129.35,0.6]
[1767348764394,21.82926866,129.38,129.35,2.586065]
[1767348764998,22.53961918,129.38,129.34,2.586065]
[1767348765205,22.53961918,129.38,129.34,0.6]
[1767348765392,24.52568418,129.38,129.34,0.6]
[1767348765701,14.81035052,129.38,129.34,2.586065]
[1767348765885,22.53957709,129.38,129.34,2.586065]
[1767348766093,0.71035052,129.37,129.34,1.986065]
[1767348766714,21.82922657,129.38,129.34,1.986065]
[1767348766904,14.1,129.38,129.35,2.586065]
[1767348767295,7.72920659,129.38,129.35,2.586065]
[1767348768731,22.53906769,129.39,129.35,0.6]
[1767348768913,5.77366786,129.38,129.35,2.586065]
[1767348769105,8.43906769,129.39,129.35,0.6]
[1767348769303,5.77359244,129.38,129.35,2.586065]
[1767348769512,22.53906769,129.39,129.35,2.586065]
[1767348769713,5.77425196,129.38,129.35,2.586065]
[1767348769916,22.53906769,129.39,129.36,2.586065]
[1767348770225,5.77424797,129.38,129.35,1.986065]
[1767348770406,0.71035052,129.38,129.35,1.986065]
[1767348771230,22.53906769,129.39,129.35,2.586065]
[1767348771414,5.77615211,129.38,129.35,2.586065]
[1767348771616,22.53906769,129.39,129.35,2.586065]
[1767348771803,5.77618831,129.38,129.35,2.586065]
[1767348772003,22.53906769,129.39,129.35,2.586065]
[1767348772202,5.77586498,129.38,129.35,2.586065]
[1767348772406,22.53906769,129.39,129.35,2.586065]
[1767348772702,5.77717057,129.38,129.35,2.586065]
[1767348772902,22.53906769,129.39,129.35,2.586065]
[1767348773100,5.77717057,129.38,129.35,2.586065]
[1767348773328,21.82871717,129.39,129.36,0.6]
[1767348773627,5.77870242,129.38,129.36,0.6]
[1767348773804,22.53906769,129.39,129.33,68.93184605]
[1767348774127,5.77870288,129.38,129.36,1.986065]
[1767348774304,22.53906769,129.39,129.36,1.986065]
[1767348774504,5.77975275,129.38,129.36,1.986065]
[1767348774812,22.53906769,129.39,129.35,2.586065]
[1767348775015,5.77975428,129.38,129.35,2.586065]
[1767348775319,22.53906769,129.39,129.35,1.986065]
[1767348775520,5.78128387,129.38,129.36,2.586065]
[1767348775725,14.1,129.39,129.36,2.586065]
[1767348775911,5.78128188,129.38,129.36,2.586065]
[1767348776101,14.1,129.39,129.36,2.586065]
[1767348776301,5.78128034,129.38,129.36,0.6]
[1767348776528,14.1,129.39,129.36,2.586065]
[1767348776725,5.78260733,129.38,129.36,2.586065]
[1767348777024,14.1,129.39,129.36,2.586065]
[1767348777225,5.7825711,129.38,129.36,2.586065]
[1767348777431,5.7825711,129.37,129.36,2.586065]
[1767348777807,5.7825711,129.38,129.36,2.586065]
[1767348778011,0.67116069,129.39,129.36,0.6]
[1767348778323,5.78398316,129.38,129.36,2.586065]
[1767348778525,0.67116069,129.39,129.36,2.586065]
[1767348778718,5.78407987,129.38,129.34,7.7312404]
[1767348778918,5.78407987,129.37,129.36,1.986065]
[1767348779502,5.78407987,129.37,129.35,2.586065]
[1767348779705,14.1,129.4,129.37,0.6]
[1767348779903,7.72776391,129.41,129.37,0.6]
[1767348779904,5.78410897,129.39,129.38,1.986065]
[1767348780424,5.78410897,129.39,129.37,2.586065]
[1767348780613,8.3989246,129.41,129.37,2.586065]
[1767348780815,5.78381501,129.4,129.39,1.986065]
[1767348781120,22.49799459,129.42,129.38,1.986065]
[1767348781326,8.39799459,129.42,129.38,2.586065]
[1767348781532,22.49799459,129.42,129.38,2.586065]
[1767348782112,23.8128989,129.42,129.36,7.73032025]
[1767348782318,0.67116069,129.4,129.36,0.6]
[1767348782497,0.67116069,129.4,129.37,0.6]
[1767348782707,0.67116069,129.4,129.36,2.586065]
[1767348782924,0.67116069,129.4,129.37,1.986065]
[1767348783310,14.77116069,129.41,129.37,2.586065]
[1767348783510,14.1,129.41,129.39,1.986065]
[1767348783722,14.1,129.41,129.39,2.586065]
[1767348784031,22.49745489,129.43,129.39,2.586065]
[1767348784233,22.49745489,129.43,129.4,1.986065]
[1767348784841,22.49745489,129.43,129.39,0.6]
[1767348785018,14.77116069,129.43,129.4,1.986065]
[1767348785336,0.67116069,129.42,129.38,1.986065]
[1767348785505,2.65722569,129.41,129.37,2.586065]
[1767348785711,0.67116069,129.4,129.36,2.586065]
[1767348786342,0.67116069,129.4,129.37,1.986065]
[1767348787817,0.67116069,129.4,129.36,2.586065]
[1767348788238,8.39918714,129.4,129.36,2.586065]
[1767348788923,8.39918714,129.4,129.36,0.6]
[1767348789118,0.67116069,129.4,129.36,2.586065]
[1767348789325,0.67116069,129.4,129.37,1.986065]
[1767348790735,0.67116069,129.4,129.36,2.586065]
[1767348791443,0.67116069,129.4,129.36,0.6]
[1767348791738,0.67116069,129.4,129.36,2.586065]
[1767348792422,8.39914722,129.4,129.36,2.586065]
[1767348792942,0.67116069,129.4,129.37,2.586065]
[1767348793726,0.67116069,129.4,129.37,0.6]
[1767348794438,0.67116069,129.4,129.36,1.986065]
[1767348794629,0.67116069,129.4,129.36,2.586065]
[1767348794832,0.67116069,129.4,129.36,10.31638646]
[1767348795216,0.67116069,129.4,129.36,2.586065]
[1767348796728,0.67116069,129.4,129.36,0.6]
[1767348796939,1.986065,129.4,129.36,1.986065]
[1767348797247,1.986065,129.4,129.36,2.586065]
[1767348797248,0.67116069,129.39,129.36,2.586065]
[1767348797822,0.67116069,129.39,129.36,0.6]
[1767348798133,0.67116069,129.39,129.36,2.586065]
[1767348799852,16.75722569,129.41,129.36,10.31629504]
[1767348800148,6.4498214,129.4,129.36,10.31629504]
[1767348800336,0.67116069,129.4,129.36,10.31629504]
[1767348800842,0.67116069,129.4,129.36,8.33023004]
[1767348801022,0.67116069,129.4,129.36,10.31629504]
[1767348802733,0.67116069,129.4,129.36,0.6]
[1767348802932,1.986065,129.4,129.36,0.6]
[1767348803132,0.67116069,129.39,129.36,0.6]
[1767348804033,0.67116069,129.39,129.36,2.586065]
[1767348804847,16.75722569,129.41,129.37,0.6]
[1767348805050,6.45246961,129.4,129.37,0.6]
[1767348805247,0.67116069,129.4,129.37,0.6]
[1767348806433,0.67116069,129.4,129.36,10.31613079]
[1767348806634,5.78390578,129.39,129.36,10.31613079]
[1767348806851,0.65874695,129.4,129.36,10.31613079]
[1767348807053,5.18390929,129.39,129.38,1.986065]
[1767348807350,14.1,129.41,129.37,1.986065]
[1767348807351,14.75874695,129.41,129.37,1.986065]
[1767348807552,14.75874695,129.41,129.37,9.71567661]
[1767348807745,0.65874695,129.41,129.37,9.71567661]
[1767348808145,0.65874695,129.41,129.37,1.986065]
[1767348808541,0.65874695,129.41,129.37,3.10080254]
[1767348808871,0.65874695,129.41,129.38,3.10080254]
[1767348810050,0.65874695,129.41,129.37,7.72941568]
[1767348810236,0.65874695,129.41,129.38,3.10080254]
[1767348811460,0.65874695,129.41,129.36,7.73010726]
[1767348811754,0.65874695,129.41,129.35,72.03150469]
[1767348811755,0.65874695,129.39,129.35,72.03150469]
[1767348812941,0.65874695,129.39,129.36,10.83115982]
[1767348813148,0.65874695,129.4,129.36,10.83115982]
[1767348816458,0.65874695,129.4,129.36,3.10080254]
[1767348817242,0.65874695,129.4,129.36,10.83112634]
[1767348817437,0.65874695,129.4,129.37,3.10080254]
[1767348817642,14.75874695,129.41,129.37,3.10080254]
[1767348818044,14.75874695,129.41,129.37,10.8304554]
[1767348818264,14.75874695,129.41,129.38,3.10080254]
[1767348818562,14.1,129.41,129.37,3.10080254]
[1767348818764,0.65874695,129.4,129.36,7.73012413]
[1767348818939,0.65874695,129.4,129.37,3.10080254]
[1767348819266,5.79177618,129.39,129.36,7.73012413]
[1767348819469,0.65874695,129.4,129.36,10.83092667]
[1767348819669,5.79234869,129.39,129.36,10.83092667]
[1767348819965,0.65874695,129.4,129.36,10.83092667]
[1767348820164,5.79235068,129.39,129.36,7.73012413]
[1767348820364,5.79310398,129.38,129.35,61.2]
[1767348820668,0.65874695,129.39,129.35,10.83173684]
[1767348820865,5.79368414,129.38,129.36,3.10080254]
[1767348821076,0.65874695,129.39,129.36,3.10080254]
[1767348821392,0.65874695,129.39,129.35,7.7309343]
[1767348821393,5.79368414,129.38,129.35,3.10080254]
[1767348821664,0.65874695,129.38,129.34,72.03229343]
[1767348822043,6.45368292,129.37,129.32,0.97327559]
[1767348822237,5.7949465,129.36,129.33,3.10080254]
[1767348822482,0.65874695,129.37,129.34,3.10080254]
[1767348822660,5.79514658,129.36,129.34,3.10080254]
[1767348822868,0.65874695,129.38,129.34,3.10080254]
[1767348823182,5.79514307,129.37,129.32,28.03752613]
[1767348823353,0.65874695,129.38,129.35,3.10080254]
[1767348823555,5.7949552,129.37,129.35,3.10080254]
[1767348823747,0.65874695,129.38,129.35,3.10080254]
[1767348823948,5.7949552,129.37,129.35,3.10080254]
[1767348824255,0.65874695,129.39,129.36,3.10080254]
[1767348824587,5.79519244,129.38,129.37,3.10080254]
[1767348825072,5.79519244,129.38,129.35,7.73051058]
[1767348825253,0.65874695,129.4,129.37,3.10080254]
[1767348825577,5.79470668,129.39,129.37,3.10080254]
[1767348825782,5.79470668,129.38,129.37,3.10080254]
[1767348826449,5.79470668,129.38,129.35,7.73051058]
[1767348826654,0.65874695,129.4,129.36,3.10080254]
[1767348826954,5.79483131,129.39,129.36,3.10080254]
[1767348827161,5.79483131,129.38,129.36,3.10080254]
[1767348827362,14.1,129.41,129.37,3.10080254]
[1767348827694,25.82244028,129.44,129.39,3.10080254]
[1767348827695,0.65874695,129.43,129.39,3.10080254]
[1767348827885,5.79365698,129.42,129.39,3.10080254]
[1767348828066,5.79365698,129.41,129.39,3.10080254]
[1767348828271,0.65874695,129.42,129.38,3.10080254]
[1767348828487,0.65874695,129.42,129.36,0.77303648]
[1767348828488,0.65874695,129.4,129.37,3.10080254]
[1767348829496,0.65874695,129.4,129.36,10.83058508]
[1767348830492,5.79337087,129.39,129.36,3.10080254]
[1767348830698,0.65874695,129.4,129.36,3.10080254]
[1767348830902,5.79373713,129.39,129.36,3.10080254]
[1767348831086,0.65874695,129.4,129.36,3.10080254]
[1767348831418,6.45262666,129.39,129.36,3.10080254]
[1767348831573,0.65874695,129.39,129.36,3.10080254]
[1767348831995,0.65874695,129.39,129.35,7.73076058]
[1767348832194,0.65874695,129.39,129.36,3.10080254]
[1767348832395,0.65874695,129.39,129.35,10.83156312]
[1767348832693,6.45322696,129.38,129.34,10.83208004]
[1767348832900,0.65874695,129.38,129.34,10.83208004]
[1767348833690,0.65874695,129.38,129.35,3.10080254]
[1767348834499,0.65874695,129.38,129.34,7.7312775]
[1767348834699,0.65874695,129.38,129.35,3.10080254]
[1767348836210,0.65874695,129.38,129.34,7.7312775]
[1767348836498,0.65874695,129.38,129.35,3.10080254]
[1767348836704,5.79360168,129.37,129.35,3.10080254]
[1767348836905,0.65874695,129.38,129.35,3.10080254]
[1767348837093,5.79360168,129.37,129.35,3.10080254]
[1767348837284,0.65874695,129.38,129.35,3.10080254]
[1767348837703,0.65874695,129.38,129.34,7.7312775]
[1767348837901,0.65874695,129.38,129.35,3.10080254]
[1767348838389,0.65874695,129.38,129.34,61.2]
[1767348838703,0.65874695,129.38,129.34,64.30080254]
[1767348839087,0.70389321,129.37,129.33,3.10080254]
[1767348840203,0.70389321,129.37,129.34,3.10080254]
[1767348840509,0.70389321,129.38,129.35,3.10080254]
[1767348841093,0.70389321,129.38,129.36,3.10080254]
[1767348843209,21.82811087,129.4,129.36,3.10080254]
[1767348843398,0.70389321,129.39,129.33,27.83576895]
[1767348843581,0.70389321,129.39,129.37,3.10080254]
[1767348843785,21.82811087,129.4,129.37,3.10080254]
[1767348843786,22.53200408,129.4,129.37,3.10080254]
[1767348844215,0.70389321,129.39,129.37,3.10080254]
[1767348844709,0.70389321,129.39,129.36,3.10080254]
[1767348844893,0.70389321,129.39,129.35,3.10080254]
[1767348845812,0.70389321,129.38,129.35,3.10080254]
[1767348846631,0.70389321,129.38,129.34,3.10080254]
[1767348846790,0.70389321,129.37,129.34,3.10080254]
[1767348847815,0.70389321,129.37,129.33,61.2]
[1767348848016,0.70389321,129.37,129.35,3.10080254]
[1767348848315,0.70389321,129.38,129.35,3.10080254]
[1767348849196,5.78936693,129.37,129.35,3.10080254]
[1767348849397,0.70389321,129.37,129.35,3.10080254]
[1767348849996,0.70389321,129.37,129.33,68.93180972]
[1767348850191,0.70389321,129.37,129.35,3.10080254]
[1767348850421,0.67389321,129.37,129.35,3.10080254]
[1767348850911,33.41882203,129.41,129.36,3.13080254]
[1767348850912,14.1,129.41,129.36,3.13080254]
[1767348851090,5.78841954,129.4,129.37,3.10080254]
[1767348851294,5.78841954,129.39,129.37,3.10080254]
[1767348851519,21.82755048,129.41,129.37,3.10080254]
[1767348851709,21.82755048,129.41,129.36,0.03]
[1767348851710,5.78811502,129.4,129.36,0.03]
[1767348851909,5.78811502,129.39,129.37,3.10080254]
[1767348852115,21.82755048,129.41,129.37,3.10080254]
[1767348852421,0.70389321,129.39,129.37,3.10080254]
[1767348854129,14.1,129.41,129.37,3.10080254]
[1767348854303,5.78831795,129.4,129.39,3.10080254]
[1767348854696,5.78831795,129.4,129.38,3.10080254]
[1767348854915,14.80389321,129.41,129.38,3.10080254]
[1767348855216,5.78802235,129.4,129.38,3.10080254]
[1767348855418,14.80389321,129.41,129.38,3.10080254]
[1767348855639,5.78791707,129.4,129.38,3.10080254]
[1767348855801,14.80389321,129.41,129.38,3.10080254]
[1767348855994,5.78791707,129.4,129.38,3.10080254]
[1767348856196,14.80389321,129.41,129.37,0.03]
[1767348856393,5.78782417,129.4,129.38,3.10080254]
[1767348856597,0.70389321,129.4,129.37,3.10080254]
[1767348856824,5.78790413,129.39,129.37,3.10080254]
[1767348857027,0.70389321,129.4,129.37,3.10080254]
[1767348857197,5.78819271,129.39,129.37,3.10080254]
[1767348857398,0.70389321,129.4,129.37,3.10080254]
[1767348857595,5.7881674,129.39,129.37,3.10080254]
[1767348857814,0.70389321,129.4,129.37,3.10080254]
[1767348858127,5.7881674,129.39,129.37,3.10080254]
[1767348858312,0.70389321,129.4,129.37,3.10080254]
[1767348858508,5.78814357,129.39,129.37,3.10080254]
[1767348858827,0.70389321,129.4,129.37,3.10080254]
[1767348859025,5.78814509,129.39,129.37,3.10080254]
[1767348859203,0.70389321,129.4,129.37,3.10080254]
[1767348859505,5.78812473,129.39,129.37,3.10080254]
[1767348859704,0.70389321,129.4,129.37,3.10080254]
[1767348859923,5.78812473,129.39,129.38,3.10080254]
[1767348861727,8.4315866,129.41,129.38,3.10080254]
[1767348862325,0.70389321,129.4,129.38,3.10080254]
[1767348865329,0.70389321,129.4,129.37,0.03]
[1767348865514,0.70389321,129.4,129.38,3.10080254]
[1767348866809,0.70389321,129.4,129.39,3.10080254]
[1767348867413,0.70389321,129.4,129.37,3.10080254]
[1767348867615,0.70389321,129.4,129.38,3.10080254]
[1767348867816,0.70389321,129.4,129.37,3.10080254]
[1767348869527,0.70389321,129.4,129.38,3.10080254]
[1767348870523,0.70389321,129.4,129.38,1.98433299]
[1767348871030,0.72067753,129.41,129.39,1.98433299]
[1767348873226,0.72067753,129.41,129.36,7.76036487]
[1767348873535,0.72067753,129.41,129.38,1.98433299]
[1767348873735,6.51032558,129.4,129.38,1.98433299]
[1767348874034,0.72067753,129.4,129.39,1.98433299]
[1767348874331,0.72067753,129.4,129.38,1.98433299]
[1767348874526,0.72067753,129.4,129.36,68.96036487]
[1767348874913,0.72067753,129.4,129.38,1.98433299]
[1767348877230,0.72067753,129.4,129.37,1.98433299]
[1767348878229,0.72067753,129.42,129.37,0.03]
[1767348878431,5.78850677,129.41,129.4,1.98433299]
[1767348880231,0.72067753,129.42,129.4,1.98433299]
[1767348881131,8.44749105,129.42,129.38,0.03]
[1767348881437,8.44749105,129.42,129.4,1.98433299]
[1767348881626,0.72067753,129.41,129.39,1.98433299]
[1767348881929,0.72067753,129.41,129.38,1.98433299]
[1767348883411,0.72067753,129.41,129.39,1.98433299]
[1767348884617,0.72067753,129.42,129.4,1.98433299]
[1767348884821,5.78768015,129.41,129.4,1.98433299]
[1767348885022,29.64756793,129.45,129.4,1.98433299]
[1767348885023,0.1,129.52,129.4,3.96866598]
[1767348885312,4.12767276,129.55,129.51,1.98433299]
[1767348885525,0.82067753,129.57,129.54,1.98433299]
[1767348885731,0.82067753,129.57,129.52,0.1]
[1767348885732,0.82067753,129.57,129.55,1.98433299]
[1767348886116,0.82067753,129.57,129.52,22.41797078]
[1767348886323,0.82067753,129.57,129.51,14.12]
[1767348886525,0.82067753,129.57,129.54,1.98433299]
[1767348886744,0.82067753,129.57,129.55,1.98433299]
[1767348886926,0.82067753,129.57,129.52,7.72081531]
[1767348887236,0.82067753,129.57,129.54,1.98433299]
[1767348887838,0.82067753,129.57,129.5,23.33930829]
[1767348887839,0.72067753,129.56,129.5,4.03440173]
[1767348888024,0.72067753,129.56,129.53,1.98433299]
[1767348888442,0.69067753,129.56,129.53,1.98433299]
[1767348889543,0.69067753,129.56,129.54,1.98433299]
[1767348890043,0.69067753,129.56,129.52,7.72076899]
[1767348890224,0.69067753,129.56,129.54,1.98433299]
[1767348892542,0.69067753,129.56,129.52,7.72076464]
[1767348892721,0.69067753,129.56,129.54,1.98433299]
[1767348893425,0.69067753,129.56,129.51,7.75141147]
[1767348893626,0.69067753,129.56,129.54,1.98433299]
[1767348894021,0.69067753,129.56,129.51,7.75141147]
[1767348894224,0.69067753,129.56,129.54,1.98433299]
[1767348895025,0.69067753,129.56,129.51,7.75141147]
[1767348895332,0.69067753,129.56,129.55,1.98433299]
[1767348898041,0.69067753,129.56,129.54,1.98433299]
[1767348898242,0.69067753,129.56,129.55,1.98433299]
[1767348898748,0.69067753,129.56,129.51,7.75141147]
[1767348898749,0.69067753,129.56,129.54,1.98433299]
[1767348899943,0.69067753,129.56,129.55,1.98433299]
[1767348900148,0.69067753,129.56,129.53,0.03]
[1767348900334,0.69067753,129.56,129.55,1.98433299]
[1767348901047,0.70965792,129.55,129.37,0.67284126]
[1767348901341,0.70965792,129.48,129.44,1.98433299]
[1767348901544,0.70965792,129.48,129.46,1.98433299]
[1767348901724,0.70965792,129.5,129.47,1.98433299]
[1767348902140,0.70965792,129.5,129.48,1.98433299]
[1767348902743,0.70965792,129.49,129.45,1.98433299]
[1767348903048,0.70965792,129.48,129.43,0.67284126]
[1767348903247,0.70965792,129.48,129.45,1.98433299]
[1767348903448,27.02724546,129.5,129.44,1.98433299]
[1767348903646,0.70965792,129.46,129.43,1.98433299]
[1767348903833,0.70965792,129.45,129.43,1.98433299]
[1767348904331,0.70965792,129.45,129.42,1.98433299]
[1767348904928,14.80965792,129.47,129.44,1.98433299]
[1767348905136,14.80965792,129.47,129.45,1.98433299]
[1767348905755,8.35013837,129.52,129.46,1.98433299]
[1767348905955,8.35013837,129.52,129.49,1.98433299]
[1767348905956,1.48185869,129.52,129.49,1.98433299]
[1767348906130,7.71962328,129.54,129.51,1.98433299]
[1767348906462,14.1,129.6,129.51,0.67284126]
[1767348906650,27.0091165,129.59,129.51,0.67284126]
[1767348906952,27.0091165,129.59,129.53,1.98433299]
[1767348907152,27.0091165,129.59,129.54,1.98433299]
[1767348907657,1.98433299,129.58,129.54,1.98433299]
[1767348907829,27.0091165,129.59,129.54,1.98433299]
[1767348908025,2.08433299,129.57,129.52,0.67284126]
[1767348908255,9.80226728,129.57,129.51,8.39413337]
[1767348908560,0.1,129.57,129.54,0.67284126]
[1767348908761,0.70965792,129.59,129.54,0.67284126]
[1767348908933,0.70965792,129.59,129.57,1.98433299]
[1767348909133,9.69990044,129.61,129.57,1.98433299]
[1767348909134,8.42522537,129.61,129.57,1.98433299]
[1767348909350,8.42522537,129.61,129.56,1.98433299]
[1767348909351,2.69399091,129.6,129.56,1.98433299]
[1767348909555,0.70965792,129.59,129.56,1.98433299]
[1767348910056,0.70965792,129.59,129.57,1.98433299]
[1767348910255,0.70965792,129.59,129.56,1.98433299]
[1767348910948,0.70965792,129.59,129.55,2.65717425]
[1767348911540,0.70965792,129.59,129.56,1.98433299]
[1767348912655,0.70965792,129.59,129.57,1.98433299]
[1767348912844,7.71428071,129.63,129.57,1.98433299]
[1767348913149,7.71428071,129.63,129.54,0.67284126]
[1767348913150,2.69399091,129.59,129.54,0.67284126]
[1767348913357,0.70965792,129.55,129.52,1.98433299]
[1767348913559,0.70965792,129.55,129.49,34.92959623]
[1767348913560,0.70965792,129.55,129.51,0.67284126]
[1767348913758,14.08,129.61,129.54,1.98433299]
[1767348913932,0.70965792,129.58,129.54,1.98433299]
[1767348914840,2.69399091,129.57,129.53,1.98433299]
[1767348915030,2.69399091,129.57,129.52,0.67284126]
[1767348915031,0.70965792,129.57,129.54,1.98433299]
[1767348915234,0.70965792,129.57,129.53,8.39297531]
[1767348915471,0.70965792,129.57,129.54,1.98433299]
[1767348915856,0.70965792,129.57,129.51,14.1]
[1767348916032,2.69399091,129.55,129.49,34.92959623]
[1767348916235,1.98433299,129.54,129.49,42.65187518]
[1767348916459,0.70965792,129.52,129.49,34.92959623]
[1767348917144,2.69399091,129.52,129.49,34.92959623]
[1767348917958,0.70965792,129.52,129.49,34.92959623]
[1767348918456,6.01644946,129.53,129.49,34.92959623]
[1767348918655,13.7366704,129.53,129.49,34.92959623]
[1767348919356,0.70965792,129.53,129.49,34.92959623]
[1767348919564,6.01644946,129.53,129.49,34.92959623]
[1767348920244,0.70965792,129.52,129.49,34.92959623]
[1767348920545,0.70965792,129.56,129.51,5.9796328]
[1767348920746,6.01644946,129.56,129.52,0.67284126]
[1767348921642,0.70965792,129.56,129.52,0.67284126]
[1767348921960,6.01644946,129.56,129.51,5.30679154]
[1767348922163,6.01644946,129.56,129.51,5.9796328]
[1767348922561,0.70965792,129.56,129.51,5.9796328]
[1767348922744,6.01644946,129.56,129.51,5.9796328]
[1767348922946,6.01644946,129.56,129.51,8.39411783]
[1767348923147,6.01644946,129.56,129.51,13.70090937]
[1767348923350,0.70965792,129.56,129.52,5.9796328]
[1767348923564,5.30679154,129.6,129.56,0.67284126]
[1767348923743,7.71426367,129.63,129.54,0.67284126]
[1767348923744,0.70965792,129.62,129.54,0.67284126]
[1767348923944,5.30679154,129.58,129.54,0.67284126]
[1767348924268,14.08,129.62,129.54,5.30679154]
[1767348924440,6.01644946,129.61,129.56,5.9796328]
[1767348924638,6.01644946,129.6,129.56,0.67284126]
[1767348925048,0.70965792,129.6,129.56,0.67284126]
[1767348925364,6.01644946,129.6,129.56,0.67284126]
[1767348925540,0.70965792,129.6,129.56,0.67284126]
[1767348925741,6.01644946,129.6,129.56,0.67284126]
[1767348926150,0.70965792,129.6,129.55,13.02579565]
[1767348926449,6.01644946,129.6,129.55,13.71223225]
[1767348926648,13.73250082,129.6,129.55,13.71223225]
[1767348926849,0.7170575,129.59,129.55,13.71223225]
[1767348927745,6.02384904,129.59,129.54,8.4059862]
[1767348928068,6.02384904,129.59,129.51,0.6864366]
[1767348928069,6.02384904,129.55,129.51,0.6864366]
[1767348928271,0.7170575,129.55,129.52,5.30679154]
[1767348928652,0.7170575,129.55,129.52,13.0275914]
[1767348929357,0.7170575,129.57,129.53,13.71335794]
[1767348929558,6.02384904,129.58,129.53,8.4065664]
[1767348929859,0.7170575,129.57,129.53,5.99322814]
[1767348930571,9.33335913,129.57,129.5,14.87220077]
[1767348930867,9.33335913,129.56,129.51,7.72129185]
[1767348931075,0.7170575,129.55,129.51,7.72129185]
[1767348931291,0.7170575,129.58,129.53,0.6864366]
[1767348931453,9.33335913,129.56,129.51,0.6864366]
[1767348931653,9.33335913,129.55,129.51,0.6864366]
[1767348931868,8.61630163,129.54,129.5,30.43799075]
[1767348932575,9.33335913,129.55,129.5,21.82168912]
[1767348932746,9.33335913,129.55,129.5,30.43799075]
[1767348932747,0.7170575,129.54,129.5,30.43799075]
[1767348933165,9.33335913,129.54,129.5,30.43799075]
[1767348933367,0.7170575,129.54,129.5,30.43799075]
[1767348933562,9.33335913,129.53,129.49,43.33839447]
[1767348933774,9.33335913,129.53,129.49,34.92959623]
[1767348934073,0.7170575,129.53,129.49,42.65211218]
[1767348934368,0.7170575,129.53,129.49,51.26841381]
[1767348934568,0.7170575,129.53,129.49,42.65211218]
[1767348934761,0.7170575,129.53,129.49,51.26841381]
[1767348934977,8.61630163,129.53,129.49,34.92959623]
[1767348935173,9.33335913,129.52,129.49,34.92959623]
[1767348936554,0.7170575,129.52,129.49,34.92959623]
[1767348936958,8.61630163,129.53,129.49,34.92959623]
[1767348937157,0.7170575,129.53,129.49,34.92959623]
[1767348937360,9.33335913,129.53,129.49,34.92959623]
[1767348937760,8.61630163,129.53,129.49,34.92959623]
[1767348937961,0.7170575,129.52,129.49,34.92959623]
[1767348938578,0.7170575,129.52,129.49,42.65212104]
[1767348938783,33.3765654,129.56,129.5,0.6864366]
[1767348938784,0.7170575,129.55,129.5,0.6864366]
[1767348938980,9.33335913,129.53,129.49,43.33855764]
[1767348939158,0.7170575,129.53,129.49,43.33855764]
[1767348939359,9.33335913,129.53,129.49,43.33855764]
[1767348939563,0.7170575,129.52,129.49,42.65212104]
[1767348939768,9.33335913,129.52,129.49,34.92959623]
[1767348942468,0.7170575,129.52,129.49,34.92959623]
[1767348942675,9.33335913,129.52,129.49,34.92959623]
[1767348943266,0.7170575,129.52,129.49,34.92959623]
[1767348943586,9.33335913,129.52,129.49,34.92959623]
[1767348944285,0.7170575,129.51,129.49,34.92959623]
[1767348944594,9.33335913,129.51,129.49,34.92959623]
[1767348945072,9.33335913,129.5,129.49,33.35631165]
[1767348945672,8.61630163,129.51,129.49,33.35631165]
[1767348945871,9.23335913,129.51,129.49,33.35631165]
[1767348946785,16.95442207,129.52,129.49,33.35631165]
[1767348948395,8.33812044,129.52,129.49,33.35631165]
[1767348948579,16.95442207,129.52,129.49,33.35631165]
[1767348948779,14.08,129.53,129.5,0.6864366]
[1767348948981,8.61630163,129.53,129.5,0.6864366]
[1767348949169,8.33625957,129.55,129.5,0.6864366]
[1767348949488,8.33625957,129.55,129.51,0.6864366]
[1767348949489,8.61630163,129.54,129.51,0.6864366]
[1767348949681,8.61630163,129.53,129.49,34.04274825]
[1767348949887,8.61630163,129.53,129.5,0.6864366]
[1767348950098,0.6170575,129.54,129.5,0.6864366]
[1767348950396,8.61630163,129.53,129.5,0.6864366]
[1767348950574,9.23335913,129.54,129.5,0.6864366]
[1767348951080,0.6170575,129.54,129.5,9.30273823]
[1767348951281,14.7170575,129.56,129.51,9.30273823]
[1767348951509,23.33335913,129.56,129.52,9.30273823]
[1767348952488,21.81869705,129.56,129.52,9.30273823]
[1767348952680,21.81869705,129.56,129.51,7.72135219]
[1767348952681,7.71869705,129.56,129.53,0.6864366]
[1767348952885,8.33575455,129.56,129.52,8.61630163]
[1767348953076,0.6170575,129.56,129.52,9.30273823]